Workbook

Sheet Instructions
A6: Instructions
A8: 1.) Find a quiet place and allow yourself the full four hour exam period to practice. Treat this just as you would the real exam.
A10: 2.) Use the Navigator worksheet to see a brief description of each question, its point value and navigate between questions in your preferred order.
A12: 3.) Answer each question either to the side or below the grey question area.
A14: 4.) Use cell B1 on each question worksheet to mark whether you finished the question or not. You should use this feature to
A15: reflect your confidence in your answer. This way you'll know if you're on the money or your guesses were lucky.
A17: 5.) Grade each question harshly. It's better to put in extra reviewing time now than find the examiners aren't as generous as you hoped.
A18: Use increments of 0.25 when scoring; pay attention to the language used in the question and the point value. An "identify" question
A19: is likely 0.25 per item while an "explain" or "briefly justify" gets 0.25 for the item and another 0.25 for the justification.
A21: 6.) Enter your estimated score for each sub-part of a question in the box beneath the sub-part point value. They look like:
A23: 7.) Use the Point Grid to see your score and a breakdown of where you scored well and where you didn't.
A25: 8.) Find the top five questions where you lost the most points. These are the topics you need to review the most intensely in the
A26: next day or so.
A28: 9.) On the BattleActs site → Custom Battles → BattleCards - Prior Exams → Select this exam and mark the cards you got right and wrong.
A29: This allows your Battle Readiness Quotient (BRQ) to track your strengths and weaknesses.
A31: 10.) Use the Reset Exam button on the Point Grid worksheet to clear all of your work ready for a new attempt at this exam later.
A32: slay the beast

Sheet Formula Sheet (hidden)
A6: FORMULA SHEET
A8: • For the negative binomial distribution (for use on question 3):
B10: ○
B13: ○
A16: • For the shifted Pareto distribution (for use on questions 7, 13 & 15):
B18: ○
B21: ○
B24: ○
B27: ○

Sheet Point Grid
A5: 2017 Exam 8
B6: Total Point Value | C6: Sub-Part of Question | L6: Your Score | M6: Sub-Part of Question
A7: Question | C7: (a) | D7: (b) | E7: (c) | F7: (d) | G7: (e) | H7: (f) | I7: (g) | J7: Status | L7: Question | M7: (a) | N7: (b) | O7: (c) | P7: (d) | Q7: (e) | R7: (f) | S7: (g)
A8: 1 | B8: =SUM(C8:I8) -> 8.5 | C8: 1.5 | D8: 2 | E8: 1.5 | F8: 1.5 | G8: 1 | H8: 1 | J8: =INDIRECT("'"&A8&"'!B1") -> Incomplete | L8: =A8 -> 1 | M8: =_xlfn.IFNA(IF(ISBLANK(INDEX(INDIRECT("'"&$L8&"'!$A:$A"),MATCH(M$7,INDIRECT("'"&$L8&"'!$A:$A"),0)+2)),"",INDEX(INDIRECT("'"&$L8&"'!$A:$A"),MATCH(M$7,INDIRECT("'"&$L8&"'!$A:$A"),0)+2)),"") -> 
A9: 2 | B9: =SUM(C9:I9) -> 2 | C9: 1.75 | D9: 0.25 | J9: =INDIRECT("'"&A9&"'!B1") -> Incomplete | L9: =A9 -> 2
A10: 3 | B10: 1.5 | C10: 0.75 | D10: 0.75 | J10: Incomplete | L10: 3
A11: 4 | B11: 1.75 | C11: 0.5 | D11: 0.75 | E11: 0.5 | J11: Incomplete | L11: 4
A12: 5 | B12: 1.75 | C12: 1.75 | J12: Incomplete | L12: 5
A13: 6 | B13: 3.5 | C13: 1 | D13: 1.5 | E13: 0.5 | F13: 0.5 | J13: Incomplete | L13: 6
A14: 7 | B14: 1.75 | C14: 1 | D14: 0.75 | J14: Incomplete | L14: 7
A15: 8 | B15: 1.75 | C15: 0.75 | D15: 1 | J15: Incomplete | L15: 8
A16: 9 | B16: 3.25 | C16: 3.25 | J16: Incomplete | L16: 9
A17: 10 | B17: 1 | C17: 1 | J17: Incomplete | L17: 10
A18: 11 | B18: 2.5 | C18: 1.5 | D18: 1 | J18: Incomplete | L18: 11 | M18: =_xlfn.IFNA(IF(ISBLANK(INDEX(INDIRECT("'"&$L18&"'!$A:$A"),MATCH(M$7,INDIRECT("'"&$L18&"'!$A:$A"),0)+2)),"",INDEX(INDIRECT("'"&$L18&"'!$A:$A"),MATCH(M$7,INDIRECT("'"&$L18&"'!$A:$A"),0)+2)),"") -> 
A19: 12 | B19: 3.25 | C19: 1 | D19: 0.5 | E19: 0.5 | F19: 1.25 | J19: Incomplete | L19: 12
A20: 13 | B20: 2.5 | C20: 2 | D20: 0.5 | J20: Incomplete | L20: 13
A21: 14 | B21: 3 | C21: 1.5 | D21: 1.5 | J21: Incomplete | L21: 14
A22: 15 | B22: 3.25 | C22: 1.75 | D22: 1 | E22: 0.5 | J22: Incomplete | L22: 15
A23: 16 | B23: 1.75 | C23: 0.5 | D23: 1.25 | J23: Incomplete | L23: 16
A24: 17 | B24: 2 | C24: 1.5 | D24: 0.5 | J24: Incomplete | L24: 17
A25: 18 | B25: =SUM(C25:I25) -> 3.25 | C25: 2 | D25: 0.75 | E25: 0.5 | J25: Incomplete | L25: =A25 -> 18
A26: 19 | B26: 3 | C26: 1.5 | D26: 0.5 | E26: 1 | J26: Incomplete | L26: 19
A27: 20 | B27: 2.5 | C27: 0.75 | D27: 1.75 | J27: Incomplete | L27: 20
A29: Total | B29: =SUM(B8:B27) -> 53.75 | L29: TOTAL | M29: =IF(SUM(IF(M8:S27="",0,1))=0,"",SUM(M8:S27)) ->  | O29: Percentage: | P29: =IF(M29="","",M29/B29) -> 
L31: Passing Score: | M31: 37.5

Sheet Navigator
A6: Navigator – Select a question to go to it
A8: Question # | H8: Status
A9: Q1 -- Goldburd (GLM) -- Variable Selection (IQ) -- 8.50 points | H9: ='Point Grid'!J8 -> Incomplete
A10: Q2 -- Robertson -- Weighted k-means -- 2.00 points | H10: ='Point Grid'!J9 -> Incomplete
A11: Q3 -- Bailey & Simon -- Relative Credibility -- 1.50 points | H11: ='Point Grid'!J10 -> Incomplete
A12: Q4 -- Goldburd (GLM) -- Model Selection -- 1.75 points | H12: ='Point Grid'!J11 -> Incomplete
A13: Q5 -- Goldburd (GLM) -- Null, Saturated & Practical Models -- 1.75 points | H13: ='Point Grid'!J12 -> Incomplete
A14: Q6 -- Goldburd (GLM) -- Logistic Regression --3.50 points | H14: ='Point Grid'!J13 -> Incomplete
A15: Q7 -- Bahnemann -- Risk Loaded ILFs -- 1.75 points | H15: ='Point Grid'!J14 -> Incomplete
A16: Q8 -- Bahnemann -- Layer Inflation -- 1.75 points | H16: ='Point Grid'!J15 -> Incomplete
A17: Q9 -- ISO CGL -- Experience Modified Premium -- 3.25 points | H17: ='Point Grid'!J16 -> Incomplete
A18: Q10 -- ISO CGL -- Schedule Rating -- 1.00 point | H18: ='Point Grid'!J17 -> Incomplete
A19: Q11 -- Fisher -- Efficiency Test -- 2.50 points | H19: ='Point Grid'!J18 -> Incomplete
A20: Q12 -- Fisher -- Lee Diagrams -- 3.25 points | H20: ='Point Grid'!J19 -> Incomplete
A21: Q13 -- Fisher -- Retrospective Premium -- 2.50 points | H21: ='Point Grid'!J20 -> Incomplete
A22: Q14 -- Bahnemann -- Excess Severity -- 3.00 points | H22: ='Point Grid'!J21 -> Incomplete
A23: Q15 -- Fisher -- Retrospective Rating Cashflow -- 3.25 points | H23: ='Point Grid'!J22 -> Incomplete
A24: Q16 -- Clark -- Modeling Approaches -- 1.75 points | H24: ='Point Grid'!J23 -> Incomplete
A25: Q17 -- Fisher -- ICRLL Adjustment -- 2.00 points | H25: ='Point Grid'!J24 -> Incomplete
A26: Q18 -- Bernegger -- Exposure Curves -- 3.25 points | H26: ='Point Grid'!J25 -> Incomplete
A27: Q19 -- Clark -- Swing Plans -- 3.00 points | H27: ='Point Grid'!J26 -> Incomplete
A28: Q20 -- Grossi -- Risk Loaded Premiums -- 3.00 points | H28: ='Point Grid'!J27 -> Incomplete

Sheet 1
A1: 1 | B1: Incomplete | H1: Navigator | K1: Solution
A3: Points | B3: An actuary has constructed a pure premium model using the Tweedie distribution with parameter
A4: =INDEX('Point Grid'!B:B,MATCH('1'!A1,'Point Grid'!A:A,0)) -> 8.5 | B4: 1 < p < 2 to determine manual rates for a Workers' Compensation book of business. The output of the model
B5: is pure premium per $100 of payroll.
B7: The following variables were considered for inclusion in the model:
B8: Variable | D8: Description or Source of Data | G8: p-value
B9: Industry | D9: Construction, Manufacturing, All Other | G9: 0.002
B10: Return to Work Program | D10: Yes or No | G10: 0.008
B11: Employee Age | D11: Average Age in Years | G11: 0.003
B12: Employee Tenure | D12: Average Number of Years of Employment | G12: 0.005
B13: Location | D13: State of Jurisdiction | G13: 0.08
B14: Employee Morale | D14: Based on Results of Annual Company Survey | G14: 0.15
B15: Number of Back Injuries | D15: Supplied by Employer | G15: 0.01
B17: The actuary has decided to use the following variables in the model: Industry, Employee Tenure, and
B18: Return to Work Program.
A20: (a) | B20: Discuss the statistical and non-statistical considerations of including each of the three variables (Industry,
A21: =INDEX('Point Grid'!$C$8:$I$29,MATCH($A$1,'Point Grid'!$A$8:$A$29,0),MATCH(A20,'Point Grid'!$C$7:$I$7,0)) -> 1.5 | B21: Employee Tenure, and Return to Work Program) in the model.
A24: (b) | B24: Discuss the statistical and non-statistical considerations of excluding each of the remaining four variables
A25: =INDEX('Point Grid'!$C$8:$I$29,MATCH($A$1,'Point Grid'!$A$8:$A$29,0),MATCH(A24,'Point Grid'!$C$7:$I$7,0)) -> 2 | B25: (Employee Age, Location, Employee Morale, and Number of Back Injuries) from the model.
A28: (c) | B28: The actuary fits the log link GLM model using the three selected variables. Given the fitted model parameters
A29: =INDEX('Point Grid'!$C$8:$I$29,MATCH($A$1,'Point Grid'!$A$8:$A$29,0),MATCH(A28,'Point Grid'!$C$7:$I$7,0)) -> 1.5 | B29: below and the following information for a Manufacturing Workers' Compensation risk, calculate the
B30: standard premium for this risk for an annual policy period.
C32: Parameter | E32: Coefficient
C33: Intercept | E33: -0.631
C34: Employee Tenure | E34: -0.04
C35: Return to Work Program: Yes | E35: -0.2
C36: Industry Type: Construction | E36: 0.35
C37: Industry Type: All Other | E37: -0.55
C39: Data for Manufacturing Risk | F39: Value
C40: Payroll | F40: 1000000
C41: Employee Tenure | F41: 5 Years
C42: Return to Work Program | F42: No
C43: Actual Losses for Experience Rating | F43: 12500
C44: Fixed Expenses | F44: 1500
C45: Variable Expenses (as % of premium) | F45: 0.2
C46: Experience rating Constant (K) | F46: 10000
B48: The actuary has graphed actual vs. modeled expected loss ratios by size of risk for the company's entire
B49: Workers' Compensation book, which is shown below.
A51: (d) | B51: In order to improve the model fit for larger risks, the actuary is considering incorporating the variable
A52: =INDEX('Point Grid'!$C$8:$I$29,MATCH($A$1,'Point Grid'!$A$8:$A$29,0),MATCH(A51,'Point Grid'!$C$7:$I$7,0)) -> 1.5 | B52: "Latest 3 Year Historical Losses" into the model. Explain three reasons against doing so.
B73: The actuary is now developing a quote for a new Construction risk with $50,000,000 of payroll using this
B74: rating plan.
A76: (e) | B76: Describe two potential issues in developing a premium for this risk under this rating plan.
A77: =INDEX('Point Grid'!$C$8:$I$29,MATCH($A$1,'Point Grid'!$A$8:$A$29,0),MATCH(A76,'Point Grid'!$C$7:$I$7,0)) -> 1
A80: (f) | B80: Provide an alternative rating approach for this risk and briefly discuss the advantages of this alternative for
A81: =INDEX('Point Grid'!$C$8:$I$29,MATCH($A$1,'Point Grid'!$A$8:$A$29,0),MATCH(A80,'Point Grid'!$C$7:$I$7,0)) -> 1 | B81: the insured as well as the insurance company.

Sheet 2
A1: 2 | B1: Incomplete | H1: Navigator | K1: Solution
A3: Points | B3: An actuary wants to cluster five Workers' Compensation classes based on excess ratios at
A4: =INDEX('Point Grid'!B:B,MATCH('2'!A1,'Point Grid'!A:A,0)) -> 2 | B4: two limits: 500,000 and 1,000,000. The actuary decides to use a weighted k-means
B5: algorithm with two clusters. Given the following:
B7: Class | C7: On-Leveled Earned Premium ($000) | D7: Normalized Excess Ratio at 500,000 Limit | E7: Normalized Excess Ratio at 1,000,000 Limit | F7: Initial Cluster
B10: 1 | C10: 6500 | D10: 0.24 | E10: 0.08 | F10: A
B11: 2 | C11: 5000 | D11: 0.35 | E11: 0.2 | F11: A
B12: 3 | C12: 4000 | D12: 0.21 | E12: 0.08 | F12: A
B13: 4 | C13: 3000 | D13: 0.11 | E13: 0.03 | F13: A
B14: 5 | C14: 5000 | D14: 0.18 | E14: 0.07 | F14: B
B16: • Distance will be measured using the L2 (Euclidean) norm.
B17: • At the start of the algorithm, the actuary randomly assigns each class to a cluster.
A19: (a) | B19: Determine the cluster for each class after the first iteration of the weighted k-means algorithm.
A20: =INDEX('Point Grid'!$C$8:$I$29,MATCH($A$1,'Point Grid'!$A$8:$A$29,0),MATCH(A19,'Point Grid'!$C$7:$I$7,0)) -> 1.75
A23: (b) | B23: Briefly describe one advantage of using the L1 measure rather than L2 when computing clusters.
A24: =INDEX('Point Grid'!$C$8:$I$29,MATCH($A$1,'Point Grid'!$A$8:$A$29,0),MATCH(A23,'Point Grid'!$C$7:$I$7,0)) -> 0.25

Sheet 3
A1: 3 | B1: Incomplete | F1: Navigator | H1: Solution
A3: Points | B3: The following data shows the experience of a merit rating plan for private passenger
A4: =INDEX('Point Grid'!B:B,MATCH('3'!A1,'Point Grid'!A:A,0)) -> 1.5 | B4: vehicles. The merit rating plan uses multiple rating variables, including territory.
B6: Number of Accident-Free Years | C6: Earned Car Years (000s) | D6: Earned Premium ($000s) | E6: Number of Incurred Claims
B8: 5 or More | C8: 250 | D8: 500000 | E8: 15000
B9: 3 and 4 | C9: 100 | D9: 90000 | E9: 13500
B10: 1 and 2 | C10: 80 | D10: 60000 | E10: 8000
B11: 0 | C11: 70 | D11: 50000 | E11: 10500
B12: Total | C12: =SUM(C8:C11) -> 500 | D12: =SUM(D8:D11) -> 700000 | E12: =SUM(E8:E11) -> 47000
B14: Territory | C14: Frequency | D14: Average Premium
B15: A | C15: 0.05 | D15: 1500
B16: B | C16: 0.1 | D16: 2000
B17: C | C17: 0.15 | D17: 1250
A19: (a) | B19: Recommend and justify an exposure base for this merit rating plan.
A20: =INDEX('Point Grid'!$C$8:$I$29,MATCH($A$1,'Point Grid'!$A$8:$A$29,0),MATCH(A19,'Point Grid'!$C$7:$I$7,0)) -> 0.75
A23: (b) | B23: Calculate the relative credibility of an exposure that has been three or more years
A24: =INDEX('Point Grid'!$C$8:$I$29,MATCH($A$1,'Point Grid'!$A$8:$A$29,0),MATCH(A23,'Point Grid'!$C$7:$I$7,0)) -> 0.75 | B24: accident-free using the exposure base from part (a) above.

Sheet 4
A1: 4 | B1: Incomplete | G1: Navigator | I1: Solution
A3: Points | B3: An actuary has split data into training and test groups for a model. The chart below shows
A4: =INDEX('Point Grid'!B:B,MATCH('4'!A1,'Point Grid'!A:A,0)) -> 1.75 | B4: the relationship between model performance and model complexity. Model performance
B5: is represented by model error and model complexity is represented by degrees of freedom.
A24: (a) | B24: Briefly describe two reasons for splitting modeling data into training and test groups.
A25: =INDEX('Point Grid'!$C$8:$I$29,MATCH($A$1,'Point Grid'!$A$8:$A$29,0),MATCH(A24,'Point Grid'!$C$7:$I$7,0)) -> 0.5
A28: (b) | B28: Briefly describe whether each of the following model iterations has an optimal balance of
A29: =INDEX('Point Grid'!$C$8:$I$29,MATCH($A$1,'Point Grid'!$A$8:$A$29,0),MATCH(A28,'Point Grid'!$C$7:$I$7,0)) -> 0.75 | B29: complexity and performance.
B30: i. Model iteration 1: 10 degrees of freedom
B31: ii. Model iteration 2: 60 degrees of freedom
B32: iii. Model iteration 3: 100 degrees of freedom
A34: (c) | B34: Identify and briefly describe one situation where it is an advantage to split the data by time
A35: =INDEX('Point Grid'!$C$8:$I$29,MATCH($A$1,'Point Grid'!$A$8:$A$29,0),MATCH(A34,'Point Grid'!$C$7:$I$7,0)) -> 0.5 | B35: rather than by random assignment.

Sheet 5
A1: 5 | B1: Incomplete | G1: Navigator | I1: Solution
A3: Points | B3: An analyst has fit several different variations of a logistic GLM to a data set containing 1,000
A4: =INDEX('Point Grid'!B:B,MATCH('5'!A1,'Point Grid'!A:A,0)) -> 1.75 | B4: records of fraudulent claims and 9,000 records of legitimate claims. For each model variation
B5: listed below, draw a quintile plot based on the training data. Label the axes and identify each
B6: data series.
A8: (a) | B8: i. A saturated model
A9: =INDEX('Point Grid'!$C$8:$I$29,MATCH($A$1,'Point Grid'!$A$8:$A$29,0),MATCH(A8,'Point Grid'!$C$7:$I$7,0)) -> 1.75 | B9: ii. A null model
B10: iii. A model that could be used in practice

Sheet 6
A1: 6 | B1: Incomplete | G1: Navigator | I1: Solution
A3: Points | B3: A logistic model was built to predict the probability of a claim being fraudulent. Consider the
A4: =INDEX('Point Grid'!B:B,MATCH('6'!A1,'Point Grid'!A:A,0)) -> 3.5 | B4: predicted probabilities for the 10 claims below to be a representative sample of the total
B5: model.
C6: Claim Number | D6: Actual Fraud Indicator | E6: Predicted Probability of Fraud
C8: 1 | D8: Y | E8: 0.11
C9: 2 | D9: N | E9: 0.23
C10: 3 | D10: N | E10: 0.15
C11: 4 | D11: N | E11: 0.7
C12: 5 | D12: Y | E12: 0.91
C13: 6 | D13: Y | E13: 0.3
C14: 7 | D14: N | E14: 0.11
C15: 8 | D15: Y | E15: 0.75
C16: 9 | D16: N | E16: 0.58
C17: 10 | D17: N | E17: 0.27
A19: (a) | B19: Construct confusion matrices for discrimination thresholds of 0.50 and 0.25.
A20: =INDEX('Point Grid'!$C$8:$I$29,MATCH($A$1,'Point Grid'!$A$8:$A$29,0),MATCH(A19,'Point Grid'!$C$7:$I$7,0)) -> 1
A23: (b) | B23: Plot the Receiver Operating Characteristic (ROC) curve with the discrimination thresholds of 0.50
A24: =INDEX('Point Grid'!$C$8:$I$29,MATCH($A$1,'Point Grid'!$A$8:$A$29,0),MATCH(A23,'Point Grid'!$C$7:$I$7,0)) -> 1.5 | B24: and 0.25. Label each axis and the coordinates and discrimination threshold of each point on the
B25: curve.
A27: (c) | B27: Describe an advantage and a disadvantage of selecting a discrimination threshold of 0.25 instead
A28: =INDEX('Point Grid'!$C$8:$I$29,MATCH($A$1,'Point Grid'!$A$8:$A$29,0),MATCH(A27,'Point Grid'!$C$7:$I$7,0)) -> 0.5 | B28: of 0.50.
A31: (d) | B31: Describe whether a discrimination threshold of 0.25 or 0.50 is more appropriate for a line of
A32: =INDEX('Point Grid'!$C$8:$I$29,MATCH($A$1,'Point Grid'!$A$8:$A$29,0),MATCH(A31,'Point Grid'!$C$7:$I$7,0)) -> 0.5 | B32: business with low frequency and high severity.

Sheet 7
A1: 7 | B1: Incomplete | H1: Navigator | J1: Solution
A3: Points | B3: Given the following information:
A4: =INDEX('Point Grid'!B:B,MATCH('7'!A1,'Point Grid'!A:A,0)) -> 1.75 | B4: • Allocated loss adjustment expense is 15% of the indemnity amount.
B5: • The variance method has been selected to include a risk load in the
B6: Increased Limits Factors (ILFs) with k = 0.000064 and δ = 0.
C8: Limit, L | D8: E[X; L] | E8: E[X2; L]
C9: 1000 | D9: 840 | E9: 790123
C10: 5000 | D10: 2485 | E10: 9467456
A12: (a) | B12: Calculate the following:
A13: =INDEX('Point Grid'!$C$8:$I$29,MATCH($A$1,'Point Grid'!$A$8:$A$29,0),MATCH(A12,'Point Grid'!$C$7:$I$7,0)) -> 1 | B13: • The risk loads for each limit.
B14: • The ILF with and without risk load for the 5,000 limit.
A16: (b) | B16: Assuming portfolio weights of 75% for a 1,000 limit and 25% for a 5,000 limit,
A17: =INDEX('Point Grid'!$C$8:$I$29,MATCH($A$1,'Point Grid'!$A$8:$A$29,0),MATCH(A16,'Point Grid'!$C$7:$I$7,0)) -> 0.75 | B17: determine the overall impact on premium by using the ILFs with the risk loads
B18: instead of the ILFs without risk loads.

Sheet 8
A1: 8 | B1: Incomplete | G1: Navigator | I1: Solution
A3: Points | B3: An insurer sells coverage with an attachment point of 5,000 and a layer limit of 5,000.
A4: =INDEX('Point Grid'!B:B,MATCH('8'!A1,'Point Grid'!A:A,0)) -> 1.75 | B4: The following table represents the expected cumulative severity distribution and limited
B5: expected severity for the current year at various limits.
C6: L | D6: F(L) | E6: E[X; L]
C7: 4545 | D7: 0.842 | E7: 1807
C8: 5000 | D8: 0.859 | E8: 1875
C9: 5500 | D9: 0.875 | E9: 1941
C10: 9091 | D10: 0.938 | E10: 2256
C11: 10000 | D11: 0.947 | E11: 2308
C12: 11000 | D12: 0.954 | E12: 2357
B14: The actuary expects a 10% severity increase for all claim sizes next year.
A16: (a) | B16: Calculate the percent change in frequency of claims in the layer.
A17: =INDEX('Point Grid'!$C$8:$I$29,MATCH($A$1,'Point Grid'!$A$8:$A$29,0),MATCH(A16,'Point Grid'!$C$7:$I$7,0)) -> 0.75
A20: (b) | B20: Calculate the percent change in pure premiums in the layer.
A21: =INDEX('Point Grid'!$C$8:$I$29,MATCH($A$1,'Point Grid'!$A$8:$A$29,0),MATCH(A20,'Point Grid'!$C$7:$I$7,0)) -> 1

Sheet 9
A1: 9 | B1: Incomplete | I1: Navigator | K1: Solution
A3: Points | B3: Consider the following claims-made commercial general liability policy:
A4: =INDEX('Point Grid'!B:B,MATCH('9'!A1,'Point Grid'!A:A,0)) -> 3.25 | B4: • The insurance contract was originally written January 1, 2011, and has been
B5: renewed annually as a claims-made policy.
B6: • The annual Premises/Operations basic limits manual premium is $200,000 and
B7: there is no products exposure.
B8: • The expected loss ratio is 70%.
B9: • Loss experience is evaluated as of June 30, 2016.
B11: Claim Number | C11: Policy Year | D11: Indemnity | E11: ALAE
B12: 1 | C12: 2011 | D12: 5000 | E12: 5000
B13: 2 | C13: 2012 | D13: 15000 | E13: 25000
B14: 3 | C14: 2013 | D14: 58000 | E14: 0
B15: 4 | C15: 2013 | D15: 20000 | E15: 85000
B16: 5 | C16: 2014 | D16: 118000 | E16: 82000
B17: 6 | C17: 2015 | D17: 8000 | E17: 5000
B19: You may use the information in the following tables:
B20: Table 13.B | C20: Occurrence | D20: Claims-Made Year in Program
B21: Subline | C21: Policy | D21: Mature | E21: Fourth | F21: Third | G21: Second | H21: First
B22: Prem/Ops | C22: 1 | D22: 1.03 | E22: 1.14 | F22: 1.2 | G22: 1.32 | H22: 1.62
B24: Table 13.C | C24: Occurrence | D24: Claims-Made Year in Program
B25: Subline | C25: Policy | D25: Mature | E25: Fourth | F25: Third | G25: Second | H25: First
B26: Prem/Ops | C26: 1 | D26: 0.94 | E26: 0.91 | F26: 0.88 | G26: 0.78 | H26: 0.67
B28: Table 14.
B29: Experience | D29: Factors For
B30: Period Year | C30: Subline | D30: Rule 5.B | E30: Rule 5.C
B31: Latest | C31: Prem/Ops | D31: 0.907 | E31: 0.926
B32: 2nd Latest | C32: Prem/Ops | D32: 0.864 | E32: 0.892
B33: 3rd Latest | C33: Prem/Ops | D33: 0.823 | E33: 0.858
B35: Table 16.
B36: CSLC | C36: Credibility | D36: EER | E36: MSL
B37: 318,537 – 331,584 | C37: 0.53 | D37: 0.937 | E37: 170200
B38: 331,585 – 345,206 | C38: 0.54 | D38: 0.94 | E38: 173150
B39: 345,207 – 359,440 | C39: 0.55 | D39: 0.944 | E39: 178700
A41: (a) | B41: Calculate the experience modified premium for the policy effective January 1, 2017.
A42: =INDEX('Point Grid'!$C$8:$I$29,MATCH($A$1,'Point Grid'!$A$8:$A$29,0),MATCH(A41,'Point Grid'!$C$7:$I$7,0)) -> 3.25

Sheet 10
A1: 10 | B1: Incomplete | G1: Navigator | J1: Solution
A3: Points | B3: An actuary is evaluating a risk to determine the appropriateness of applying any schedule
A4: =INDEX('Point Grid'!B:B,MATCH('10'!A1,'Point Grid'!A:A,0)) -> 1 | B4: credits or debits. In order to reduce expenses the insured removed a safety program
B5: two years ago and in the next month will be reducing its staff.
D7: Range of Modifications
B8: Risk Characteristic | C8: Description | D8: Credit | F8: Debit
B9: Cooperation | C9: Safety Program | D9: 0.1 | E9: to | F9: 0.1
B10: Employees | C10: Selection, training, supervision, experience | D10: 0.05 | E10: to | F10: 0.05
A12: (a) | B12: Recommend and defend an appropriate schedule modification.
A13: =INDEX('Point Grid'!$C$8:$I$29,MATCH($A$1,'Point Grid'!$A$8:$A$29,0),MATCH(A12,'Point Grid'!$C$7:$I$7,0)) -> 1

Sheet 11
A1: 11 | B1: Incomplete | G1: Navigator | J1: Solution
A3: Points | B3: A Workers' Compensation insurer is facing an increasingly competitive market.
A4: =INDEX('Point Grid'!B:B,MATCH('11'!A1,'Point Grid'!A:A,0)) -> 2.5 | B4: Its management is concerned about customer retention, premium growth, and loss ratio
B5: deterioration. The insurer's actuaries have proposed an updated experience rating plan.
B6: After grouping insureds for the purposes of an efficiency test, the projected impact of
B7: this proposal is below (values in thousands):
B9: Current Plan
B10: Quintile | C10: Manual Premium | D10: Loss | E10: Standard Premium | F10: Loss Ratio to Manual | G10: Loss Ratio to Standard
B12: A | C12: 4750 | D12: 1978 | E12: 3278 | F12: 0.42 | G12: 0.6
B13: B | C13: 4825 | D13: 2824 | E13: 4005 | F13: 0.59 | G13: 0.71
B14: C | C14: 4450 | D14: 2915 | E14: 4450 | F14: 0.66 | G14: 0.66
B15: D | C15: 4845 | D15: 3608 | E15: 5378 | F15: 0.74 | G15: 0.67
B16: E | C16: 4400 | D16: 3520 | E16: 5500 | F16: 0.8 | G16: 0.64
B17: Total | C17: =SUM(C12:C16) -> 23270 | D17: =SUM(D12:D16) -> 14845 | E17: =SUM(E12:E16) -> 22611 | F17: =ROUND(D17/C17,2) -> 0.64 | G17: =ROUND(D17/E17,2) -> 0.66
B19: Proposed Plan
B20: Quintile | C20: Manual Premium | D20: Loss | E20: Standard Premium | F20: Loss Ratio to Manual | G20: Loss Ratio to Standard
B22: A | C22: 4220 | D22: 1494 | E22: 2068 | F22: 0.35 | G22: 0.72
B23: B | C23: 5100 | D23: 2922 | E23: 4233 | F23: 0.57 | G23: 0.69
B24: C | C24: 4150 | D24: 3088 | E24: 4109 | F24: 0.74 | G24: 0.75
B25: D | C25: 4950 | D25: 3689 | E25: 5346 | F25: 0.75 | G25: 0.69
B26: E | C26: 4850 | D26: 3652 | E26: 5723 | F26: 0.75 | G26: 0.64
B27: Total | C27: =SUM(C22:C26) -> 23270 | D27: =SUM(D22:D26) -> 14845 | E27: =SUM(E22:E26) -> 21479 | F27: =ROUND(D27/C27,2) -> 0.64 | G27: =ROUND(D27/E27,2) -> 0.69
B29: It is estimated that the upfront cost to adopt the new rating plan will be $500,000.
A31: (a) | B31: Perform an efficiency test and evaluate the proposed experience rating plan relative to
A32: =INDEX('Point Grid'!$C$8:$I$29,MATCH($A$1,'Point Grid'!$A$8:$A$29,0),MATCH(A31,'Point Grid'!$C$7:$I$7,0)) -> 1.5 | B32: the current plan.
A35: (b) | B35: In light of management's concerns, evaluate the merits of adopting the new rating plan
A36: =INDEX('Point Grid'!$C$8:$I$29,MATCH($A$1,'Point Grid'!$A$8:$A$29,0),MATCH(A35,'Point Grid'!$C$7:$I$7,0)) -> 1 | B36: versus keeping the current plan, and provide a recommendation.

Sheet 12
A1: 12 | B1: Incomplete | G1: Navigator | I1: Solution
A3: Points | B3: A policy has a flat dollar deductible of M and a maximum payout on a loss by the insurer of N.
A4: =INDEX('Point Grid'!B:B,MATCH('12'!A1,'Point Grid'!A:A,0)) -> 3.25
A6: (a) | B6: Draw a Lee diagram representing the expected amount of loss incurred by this policy.
A7: =INDEX('Point Grid'!$C$8:$I$29,MATCH($A$1,'Point Grid'!$A$8:$A$29,0),MATCH(A6,'Point Grid'!$C$7:$I$7,0)) -> 1 | B7: Label the following:
B8: i. The axes
B9: ii. The deductible amount
B10: iii. The policy limit
B11: iv. The expected insured loss.
A13: (b) | B13: Assume cumulative losses follow a distribution F(x). Write the formula for covered losses
A14: =INDEX('Point Grid'!$C$8:$I$29,MATCH($A$1,'Point Grid'!$A$8:$A$29,0),MATCH(A13,'Point Grid'!$C$7:$I$7,0)) -> 0.5 | B14: for this policy using:
B15: i. The layer method
B16: ii. The size method.
A18: (c) | B18: Briefly describe when the layer method may be preferred and when the size method may
A19: =INDEX('Point Grid'!$C$8:$I$29,MATCH($A$1,'Point Grid'!$A$8:$A$29,0),MATCH(A18,'Point Grid'!$C$7:$I$7,0)) -> 0.5 | B19: be preferred.
A22: (d) | B22: Use a Lee diagram to demonstrate the consistency test of ILFs.
A23: =INDEX('Point Grid'!$C$8:$I$29,MATCH($A$1,'Point Grid'!$A$8:$A$29,0),MATCH(A22,'Point Grid'!$C$7:$I$7,0)) -> 1.25

Sheet 13
A1: 13 | B1: Incomplete | G1: Navigator | I1: Solution
A3: Points | B3: A risk is written using a balanced retrospective rating plan with the following characteristics:
A4: =INDEX('Point Grid'!B:B,MATCH('13'!A1,'Point Grid'!A:A,0)) -> 2.5 | B4: • Losses at the minimum premium = $50,000
B5: • Losses at the maximum premium = $300,000
B6: • Loss conversion factor = 1.05
B7: • e = $10,000
B9: The following table shows actual experience from a representative sample of risks that are
B10: similar to the risk in question:
B11: Risk | C11: Actual Aggregate Loss | D11: Risk | E11: Actual Aggregate Loss
B13: 1 | C13: 25000 | D13: 6 | E13: 175000
B14: 2 | C14: 50000 | D14: 7 | E14: 200000
B15: 3 | C15: 100000 | D15: 8 | E15: 300000
B16: 4 | C16: 100000 | D16: 9 | E16: 350000
B17: 5 | C17: 150000 | D17: 10 | E17: 550000
A19: (a) | B19: Determine the maximum premium that the insured can be charged.
A20: =INDEX('Point Grid'!$C$8:$I$29,MATCH($A$1,'Point Grid'!$A$8:$A$29,0),MATCH(A19,'Point Grid'!$C$7:$I$7,0)) -> 2
B23: An actuary has acquired actual aggregate data from a new book consisting of risks within the
B24: same industry. The loss experience of five representative risks from this book is shown below:
B25: Risk | C25: Actual Aggregate Loss
B27: 1 | C27: 275000
B28: 2 | C28: 300000
B29: 3 | C29: 500000
B30: 4 | C30: 700000
B31: 5 | C31: 800000
A33: (b) | B33: The actuary proposes to combine the data from the two books, stating that the combined data
A34: =INDEX('Point Grid'!$C$8:$I$29,MATCH($A$1,'Point Grid'!$A$8:$A$29,0),MATCH(A33,'Point Grid'!$C$7:$I$7,0)) -> 0.5 | B34: will result in a more accurate calculation of the insured's retrospective premium.
B35: Assess the validity of the actuary's statement.

Sheet 14
A1: 14 | B1: Incomplete | G1: Navigator | I1: Solution
A3: Points | B3: A reinsurer has been supplied the following information from a large insurance company:
A4: =INDEX('Point Grid'!B:B,MATCH('14'!A1,'Point Grid'!A:A,0)) -> 3
B5: Claim Size Range | C5: Expected Number of Claims | D5: Expected Ultimate Losses ($000)
B7: $0 to $1,000,000 | C7: 19000 | D7: 6750500
B8: $1,000,001 to $2,000,000 | C8: 359 | D8: 525300
B9: $2,000,001 to $3,000,000 | C9: 230 | D9: 566500
B10: $3,000,001 to $4,000,000 | C10: 147 | D10: 507700
B11: above $4,000,001 | C11: 264 | D11: 1650000
B12: Total | C12: =SUM(C7:C11) -> 20000 | D12: =SUM(D7:D11) -> 10000000
B14: The reinsurer is entering into an excess of loss contract with the primary insurance company.
B15: The reinsurer will pay all losses above a $5,000,000 per claim retention.
A17: (a) | B17: Construct a graph of the excess severity function for claim sizes of $1,000,000, $2,000,000,
A18: =INDEX('Point Grid'!$C$8:$I$29,MATCH($A$1,'Point Grid'!$A$8:$A$29,0),MATCH(A17,'Point Grid'!$C$7:$I$7,0)) -> 1.5 | B18: $3,000,000, and $4,000,000.
A21: (b) | B21: Calculate the reinsurer's expected losses under the proposed contract.
A22: =INDEX('Point Grid'!$C$8:$I$29,MATCH($A$1,'Point Grid'!$A$8:$A$29,0),MATCH(A21,'Point Grid'!$C$7:$I$7,0)) -> 1.5

Sheet 15
A1: 15 | B1: Incomplete | H1: Navigator | K1: Solution
A3: Points | B3: The following applies to an incurred loss retrospectively rated policy effective January 1, 2017.
A4: =INDEX('Point Grid'!B:B,MATCH('15'!A1,'Point Grid'!A:A,0)) -> 3.25
B5: Per-occurrence limit | E5: 150000
B6: Maximum ratable loss | E6: 600000
B7: ULAE as a percentage of loss & ALAE | E7: 0.08
B8: Expected Loss & ALAE limited to $150,000 | E8: 400000
B9: Basic Premium | E9: 375000
B10: Tax Rate | E10: 0.03
B12: The expected loss & ALAE limited to $150,000 is used to determine the initial premium.
B13: Retrospective rating adjustments start at 18 months and occur every twelve months thereafter.
B15: The following loss experience occurs during the policy period. All claims are closed at
B16: 42 months.
E17: Maturity (months)
E18: 18 | F18: 30 | G18: 42
B19: Unlimited Incurred Loss & ALAE | E19: 425000 | F19: 650000 | G19: 950000
B20: Incurred Loss & ALAE Limited to $150,000 | E20: 375000 | F20: 475000 | G20: 700000
B21: Incurred Loss & ALAE Excess of $150,000 | E21: 50000 | F21: 175000 | G21: 250000
A23: (a) | B23: Determine the amount and timing of each incremental cash flow payment made by the insured
A24: =INDEX('Point Grid'!$C$8:$I$29,MATCH($A$1,'Point Grid'!$A$8:$A$29,0),MATCH(A23,'Point Grid'!$C$7:$I$7,0)) -> 1.75 | B24: for this policy beginning with time 0.
A27: (b) | B27: Propose and justify an alternative policy that would increase the insured's cash flow benefit
A28: =INDEX('Point Grid'!$C$8:$I$29,MATCH($A$1,'Point Grid'!$A$8:$A$29,0),MATCH(A27,'Point Grid'!$C$7:$I$7,0)) -> 1 | B28: without the insured retaining any additional excess loss risk.
A31: (c) | B31: Identify and briefly describe one disadvantage to the insurer of the proposed plan in part (b)
A32: =INDEX('Point Grid'!$C$8:$I$29,MATCH($A$1,'Point Grid'!$A$8:$A$29,0),MATCH(A31,'Point Grid'!$C$7:$I$7,0)) -> 0.5 | B32: above compared to the existing retrospectively rated plan.

Sheet 16
A1: 16 | B1: Incomplete | F1: Navigator | I1: Solution
A3: Points | B3: An insurance company generally uses two different methods to price excess layer
A4: =INDEX('Point Grid'!B:B,MATCH('16'!A1,'Point Grid'!A:A,0)) -> 1.75 | B4: insurance contracts:
B5: • Empirical construction of Table M; or
B6: • Approximating the distribution of aggregate losses with a continuous approximation
B7: model.
A9: (a) | B9: Briefly describe two potential disadvantages of using a continuous approximation model.
A10: =INDEX('Point Grid'!$C$8:$I$29,MATCH($A$1,'Point Grid'!$A$8:$A$29,0),MATCH(A9,'Point Grid'!$C$7:$I$7,0)) -> 0.5
A13: (b) | B13: Fully describe the process of constructing an empirical Table M and estimating the
A14: =INDEX('Point Grid'!$C$8:$I$29,MATCH($A$1,'Point Grid'!$A$8:$A$29,0),MATCH(A13,'Point Grid'!$C$7:$I$7,0)) -> 1.25 | B14: aggregate loss cost of an excess layer using the table.

Sheet 17
A1: 17 | B1: Incomplete | H1: Navigator | K1: Solution
A3: Points | B3: A Workers' Compensation policy has the following limits and expected losses:
A4: =INDEX('Point Grid'!B:B,MATCH('17'!A1,'Point Grid'!A:A,0)) -> 2
B5: Per-Occurrence Limit | E5: 300000
B6: Expected Unlimited Aggregate Losses | E6: 700000
B7: Expected Limited Aggregate losses | E7: 500000
B8: Aggregate Deductible Limit | E8: 800000
B9: State Hazard Group Differential | E9: 0.95
B11: Table of Expected Loss Groups
B12: Expected Loss Group | C12: Range of Values
B13: 31 | C13: 630,000 – 720,000
B14: 30 | C14: 720,001 – 830,000
B15: 29 | C15: 830,001 – 990,000
B16: 28 | C16: 990,001 – 1,180,000
B17: 27 | C17: 1,180,001 – 1,415,000
B18: 26 | C18: 1,415,001 – 1,744,000
B20: Table of Insurance Charges
C21: Expected Loss Group
B22: Entry Ratio | C22: 31 | D22: 30 | E22: 29 | F22: 28 | G22: 27 | H22: 26
B23: 0.43 | C23: 0.5675 | D23: 0.5626 | E23: 0.5584 | F23: 0.5543 | G23: 0.5497 | H23: 0.5456
B24: 0.6 | C24: 0.4865 | D24: 0.4799 | E24: 0.4737 | F24: 0.4676 | G24: 0.4613 | H24: 0.4553
B25: 1.14 | C25: 0.2658 | D25: 0.2552 | E25: 0.2448 | F25: 0.2341 | G25: 0.2234 | H25: 0.2128
B26: 1.6 | C26: 0.1644 | D26: 0.1537 | E26: 0.1367 | F26: 0.1322 | G26: 0.1215 | H26: 0.1107
B27: 2.67 | C27: 0.0822 | D27: 0.0769 | E27: 0.0684 | F27: 0.0661 | G27: 0.0608 | H27: 0.0554
A29: (a) | B29: Calculate the total expected loss cost for this policy using the Insurance Charge Reflecting
A30: =INDEX('Point Grid'!$C$8:$I$29,MATCH($A$1,'Point Grid'!$A$8:$A$29,0),MATCH(A29,'Point Grid'!$C$7:$I$7,0)) -> 1.5 | B30: Loss Limitation (ICRLL) adjustment procedure.
A33: (b) | B33: Describe how the ICRLL procedure is used to adjust expected losses for a Workers'
A34: =INDEX('Point Grid'!$C$8:$I$29,MATCH($A$1,'Point Grid'!$A$8:$A$29,0),MATCH(A33,'Point Grid'!$C$7:$I$7,0)) -> 0.5 | B34: Compensation policy.

Sheet 18
A1: 18 | B1: Incomplete | J1: Navigator | N1: Solution
A3: Points | B3: A homogeneous group of property risks exhibit the following risk profile:
A4: =INDEX('Point Grid'!B:B,MATCH('18'!A1,'Point Grid'!A:A,0)) -> 3.25 | B4: Exposure Distribution | C4: Losses as a percent of the Maximum Possible Loss (MPL)
B6: 0.8 | C6: 0
B7: 0.06 | C7: 0.25
B8: 0.08 | C8: 0.5
B9: 0.04 | C9: 0.75
B10: 0.02 | C10: 1
A12: (a) | B12: Plot the exposure curve, G(x). Label the axes and the points on the curve.
A13: =INDEX('Point Grid'!$C$8:$I$29,MATCH($A$1,'Point Grid'!$A$8:$A$29,0),MATCH(A12,'Point Grid'!$C$7:$I$7,0)) -> 2
A16: (b) | B16: Determine the parameters b and g for the 2-parameter MBBEFD distribution that fits this
A17: =INDEX('Point Grid'!$C$8:$I$29,MATCH($A$1,'Point Grid'!$A$8:$A$29,0),MATCH(A16,'Point Grid'!$C$7:$I$7,0)) -> 0.75 | B17: exposure curve using the following information:
B19: Calculated value of parameter b
C20: μ
B21: Parameter g | C21: 0.4 | D21: 0.425 | E21: 0.45 | F21: 0.475 | G21: 0.5 | H21: 0.525 | I21: 0.55 | J21: 0.575 | K21: 0.6
B22: 50 | C22: 0.0023 | D22: 0.0017 | E22: 0.0013 | F22: 0.0009 | G22: 0.0005 | H22: 0.0003 | I22: 0.0002 | J22: 0.0001 | K22: 0.0001
B23: 25 | C23: 0.0096 | D23: 0.0073 | E23: 0.0055 | F23: 0.0041 | G23: 0.0022 | H23: 0.0015 | I23: 0.001 | J23: 0.0006 | K23: 0.0004
B24: 16.7 | C24: 0.0239 | D24: 0.0181 | E24: 0.0137 | F24: 0.0103 | G24: 0.0057 | H24: 0.0039 | I24: 0.0026 | J24: 0.0017 | K24: 0.001
B25: 12.5 | C25: 0.0483 | D25: 0.0365 | E25: 0.0276 | F25: 0.0209 | G25: 0.0118 | H25: 0.0081 | I25: 0.0055 | J25: 0.0036 | K25: 0.0023
B26: 10 | C26: 0.0877 | D26: 0.0659 | E26: 0.0497 | F26: 0.0375 | G26: 0.0212 | H26: 0.0147 | I26: 0.01 | J26: 0.0067 | K26: 0.0044
B27: 8.3 | C27: 0.1498 | D27: 0.1116 | E27: 0.0836 | F27: 0.0628 | G27: 0.0354 | H27: 0.0245 | I27: 0.0168 | J27: 0.0113 | K27: 0.0075
B28: 7.1 | C28: 0.247 | D28: 0.1817 | E28: 0.1347 | F28: 0.1004 | G28: 0.0561 | H28: 0.0389 | I28: 0.0267 | J28: 0.0181 | K28: 0.0121
B29: 6.3 | C29: 0.4 | D29: 0.2892 | E29: 0.2116 | F29: 0.1561 | G29: 0.0861 | H29: 0.0594 | I29: 0.0408 | J29: 0.0277 | K29: 0.0185
B30: 5.6 | C30: 0.06446 | D30: 0.4557 | E30: 0.3277 | F30: 0.2385 | G30: 0.1291 | H30: 0.0885 | I30: 0.0605 | J30: 0.0411 | K30: 0.0276
B31: 5 | C31: 1.0469 | D31: 0.719 | E31: 0.5505 | F31: 0.3616 | G31: 0.191 | H31: 0.1297 | I31: 0.0882 | J31: 0.0597 | K31: 0.04
A33: (c) | B33: A reinsurer uses this exposure curve to price a property excess of loss treaty where the
A34: =INDEX('Point Grid'!$C$8:$I$29,MATCH($A$1,'Point Grid'!$A$8:$A$29,0),MATCH(A33,'Point Grid'!$C$7:$I$7,0)) -> 0.5 | B34: underlying limit is $100 million. Calculate the proportion of total losses in the layer
B35: $25 million excess of $25 million.

Sheet 19
A1: 19 | B1: Incomplete | G1: Navigator | J1: Solution
A3: Points | B3: A primary insurer wants to institute a swing plan with the following terms:
A4: =INDEX('Point Grid'!B:B,MATCH('19'!A1,'Point Grid'!A:A,0)) -> 3 | B4: • Layer: $500,000 xs $500,000 per claim
B5: • Premium = Layer Losses * 1.3
B6: • Minimum Premium = $100,000
B7: • Maximum Premium = $325,000
B9: The reinsurer has analyzed the insurer's experience. All claims are closed and trend has
B10: been applied.
B11: Accident Year | C11: On-Level Premium | D11: Claim #1 | E11: Claim #2 | F11: Claim #3 | G11: Claim #4
B13: 2012 | C13: 400000 | D13: 465899 | E13: 230567 | F13: 512017
B14: 2013 | C14: 420000 | D14: 240785 | E14: 125766 | F14: 80154 | G14: 470666
B15: 2014 | C15: 1200000 | D15: 704895 | E15: 106528
B16: 2015 | C16: 2000000 | D16: 45988 | E16: 349145 | F16: 376011 | G16: 1246852
B17: 2016 | C17: 2200000 | D17: 437100 | E17: 654158 | F17: 250000 | G17: 156750
A19: (a) | B19: Calculate the expected loss ratio for the reinsurer based on the empirical distribution
A20: =INDEX('Point Grid'!$C$8:$I$29,MATCH($A$1,'Point Grid'!$A$8:$A$29,0),MATCH(A19,'Point Grid'!$C$7:$I$7,0)) -> 1.5 | B20: model using equal weights for each year.
A23: (b) | B23: Determine if an empirical distribution model is appropriate for this account and give one
A24: =INDEX('Point Grid'!$C$8:$I$29,MATCH($A$1,'Point Grid'!$A$8:$A$29,0),MATCH(A23,'Point Grid'!$C$7:$I$7,0)) -> 0.5 | B24: reason in support of your answer.
A27: (c) | B27: The use of a collective risk model is an alternative approach. Explain two concerns
A28: =INDEX('Point Grid'!$C$8:$I$29,MATCH($A$1,'Point Grid'!$A$8:$A$29,0),MATCH(A27,'Point Grid'!$C$7:$I$7,0)) -> 1 | B28: when using this type of model.

Sheet 20
A1: 20 | B1: Incomplete | F1: Navigator | I1: Solution
A3: Points | B3: An earthquake model produces the following damage function for a $1,000,000 home in
A4: =INDEX('Point Grid'!B:B,MATCH('20'!A1,'Point Grid'!A:A,0)) -> 2.5 | B4: California:
B23: The probability of an event occurring with a given intensity is:
C24: Intensity | D24: Probability
C25: 3.5 | D25: 0.1
C26: 6 | D26: 0.05
C27: 8.5 | D27: 0.02
A29: (a) | B29: Identify what A, B, and C represent in the above graph.
A30: =INDEX('Point Grid'!$C$8:$I$29,MATCH($A$1,'Point Grid'!$A$8:$A$29,0),MATCH(A29,'Point Grid'!$C$7:$I$7,0)) -> 0.75
A33: (b) | B33: Determine the premium for this home given the following information:
A34: =INDEX('Point Grid'!$C$8:$I$29,MATCH($A$1,'Point Grid'!$A$8:$A$29,0),MATCH(A33,'Point Grid'!$C$7:$I$7,0)) -> 1.75 | B34: • The insurer's expense load is 20% of premium
B35: • The risk load is set to 8% of the standard deviation of the loss.
